fUSD/lending_fUSD_20260128
["ID","MTS","AMOUNT","RATE_DAILY","PERIOD"]
[403895590,1769640639905,-500.0,0.00017897,2]
[403895591,1769640639914,-858.38143324,0.00017897,2]
[403895592,1769640639926,-858.38143324,0.00017897,2]
[403895593,1769640639935,-500.0,0.00017897,2]
[403895594,1769640639944,-858.38143324,0.00017897,2]
[403895595,1769640639954,-500.0,0.00017897,2]
[403895596,1769640639963,-858.38143324,0.00017897,2]
[403895597,1769640639972,-858.38143324,0.00017897,2]
[403895598,1769640639982,-500.0,0.00017897,2]
[403895599,1769640639992,-858.38143324,0.00017897,2]
[403895600,1769640640001,-500.0,0.00017897,2]
[403895602,1769640640010,-858.38143324,0.00017897,2]
[403895603,1769640640020,-858.38143324,0.00017897,2]
[403895604,1769640640029,-500.0,0.00017897,2]
[403895605,1769640640038,-858.38143324,0.00017897,2]
[403895606,1769640640048,-500.0,0.00017897,2]
[403895607,1769640640059,-858.38143324,0.00017897,2]
[403895609,1769640640068,-858.38143324,0.00017897,2]
[403895610,1769640640078,-500.0,0.00017897,2]
[403895611,1769640640087,-858.38143324,0.00017897,2]
[403895612,1769640640096,-500.0,0.00017897,2]
[403895613,1769640640106,-858.38143324,0.00017897,2]
[403895614,1769640640116,-858.38143324,0.00017897,2]
[403895615,1769640640126,-500.0,0.00017897,2]
[403895616,1769640640135,-858.38143324,0.00017897,2]
[403895617,1769640640145,-500.0,0.00017897,2]
[403895618,1769640640156,-858.38143324,0.00017897,2]
[403895619,1769640640166,-500.0,0.00017897,2]
[403895620,1769640640175,-858.38143324,0.00017897,2]
[403895621,1769640640184,-500.0,0.00017897,2]
[403895622,1769640640194,-858.38143324,0.00017897,2]
[403895623,1769640640203,-500.0,0.00017897,2]
[403895624,1769640640212,-500.0,0.00017897,2]
[403895625,1769640640221,-858.38143324,0.00017897,2]
[403895626,1769640640231,-858.38143324,0.00017897,2]
[403895627,1769640640239,-500.0,0.00017897,2]
[403895628,1769640640248,-500.0,0.00017897,2]
[403895629,1769640640258,-858.38143324,0.00017897,2]
[403895630,1769640640267,-858.38143324,0.00017897,2]
[403895631,1769640640277,-500.0,0.00017897,2]
[403895632,1769640640287,-858.38143324,0.00017897,2]
[403895633,1769640640297,-500.0,0.00017897,2]
[403895634,1769640640308,-500.0,0.00017897,2]
[403895635,1769640640318,-500.0,0.00017897,2]
[403895636,1769640640327,-500.0,0.00017897,2]
[403895637,1769640640337,-858.38143324,0.00017897,2]
[403895638,1769640640347,-858.38143324,0.00017897,2]
[403895639,1769640640357,-500.0,0.00017897,2]
[403895640,1769640640367,-858.38143324,0.00017897,2]
[403895641,1769640640376,-500.0,0.00017897,2]
[403895642,1769640640385,-858.38143324,0.00017897,2]
[403895643,1769640640394,-858.38143324,0.00017897,2]
[403895644,1769640640403,-500.0,0.00017897,2]
[403895645,1769640640411,-858.38143324,0.00017897,2]
[403895646,1769640640420,-500.0,0.00017897,2]
[403895647,1769640640431,-858.38143324,0.00017897,2]
[403895648,1769640640442,-500.0,0.00017897,2]
[403895649,1769640640452,-858.38143324,0.00017897,2]
[403895650,1769640640461,-500.0,0.00017897,2]
[403895651,1769640640470,-858.38143324,0.00017897,2]
[403895652,1769640640479,-858.38143324,0.00017897,2]
[403895653,1769640640489,-500.0,0.00017897,2]
[403895654,1769640640498,-858.38143324,0.00017897,2]
[403895655,1769640640507,-500.0,0.00017897,2]
[403895656,1769640640516,-858.38143324,0.00017897,2]
[403895657,1769640640525,-500.0,0.00017897,2]
[403895658,1769640640535,-858.38143324,0.00017897,2]
[403895659,1769640640544,-858.38143324,0.00017897,2]
[403895660,1769640640554,-500.0,0.00017897,2]
[403895661,1769640640567,-858.38143324,0.00017897,2]
[403895662,1769640640576,-500.0,0.00017897,2]
[403895663,1769640640585,-858.38143324,0.00017897,2]
[403895664,1769640640595,-500.0,0.00017897,2]
[403895665,1769640640605,-858.38143324,0.00017897,2]
[403895666,1769640640615,-858.38143324,0.00017897,2]
[403895667,1769640640624,-500.0,0.00017897,2]
[403895668,1769640640635,-858.38143324,0.00017897,2]
[403895669,1769640640644,-500.0,0.00017897,2]
[403895670,1769640640653,-858.38143324,0.00017897,2]
[403895671,1769640640662,-500.0,0.00017897,2]
[403895672,1769640640671,-858.38143324,0.00017897,2]
[403895673,1769640640680,-500.0,0.00017897,2]
[403895674,1769640640689,-858.38143324,0.00017897,2]
[403895675,1769640640698,-500.0,0.00017897,2]
[403895676,1769640640707,-858.38143324,0.00017897,2]
[403895677,1769640640716,-500.0,0.00017897,2]
[403895678,1769640640726,-858.38143324,0.00017897,2]
[403895679,1769640640736,-500.0,0.00017897,2]
[403895680,1769640640745,-858.38143324,0.00017897,2]
[403895681,1769640640755,-858.38143324,0.00017897,2]
[403895682,1769640640764,-858.38143324,0.00017897,2]
[403895683,1769640640773,-858.38143324,0.00017897,2]
[403895684,1769640640782,-500.0,0.00017897,2]
[403895685,1769640640791,-858.38143324,0.00017897,2]
[403895686,1769640640800,-500.0,0.00017897,2]
[403895687,1769640640810,-858.38143324,0.00017897,2]
[403895688,1769640640819,-858.38143324,0.00017897,2]
[403895689,1769640640828,-858.38143324,0.00017897,2]
[403895690,1769640640837,-858.38143324,0.00017897,2]
[403895691,1769640640847,-858.38143324,0.00017897,2]
[403895692,1769640640857,-500.0,0.00017897,2]
[403895693,1769640640866,-858.38143324,0.00017897,2]
[403895694,1769640640876,-500.0,0.00017897,2]
[403895695,1769640640885,-858.38143324,0.00017897,2]
[403895696,1769640640894,-500.0,0.00017897,2]
[403895697,1769640640904,-858.38143324,0.00017897,2]
[403895698,1769640640913,-500.0,0.00017897,2]
[403895699,1769640640922,-500.0,0.00017897,2]
[403895700,1769640640931,-2158.70667871,0.00017897,2]
[403895701,1769640640941,-2158.70667871,0.00017897,2]
[403895702,1769640640950,-2158.70667871,0.00017897,2]
[403895703,1769640640959,-1145.42166228,0.00017897,2]
[403895704,1769640640968,-2158.70667871,0.00017897,2]
[403895705,1769640640977,-2158.70667871,0.00017897,2]
[403895706,1769640640986,-1145.42166228,0.00017897,2]
[403895707,1769640640995,-2158.70667871,0.00017897,2]
[403895708,1769640641004,-2158.70667871,0.00017897,2]
[403895709,1769640641014,-1145.42166228,0.00017897,2]
[403895710,1769640641023,-2158.70667871,0.00017897,2]
[403895711,1769640641033,-1145.42166228,0.00017897,2]
[403895712,1769640641042,-2158.70667871,0.00017897,2]
[403895713,1769640641051,-1145.42166228,0.00017897,2]
[403895714,1769640641060,-2158.70667871,0.00017897,2]
[403895715,1769640641069,-1145.42166228,0.00017897,2]
[403895716,1769640641078,-2158.70667871,0.00017897,2]
[403895717,1769640641087,-1145.42166228,0.00017897,2]
[403895718,1769640641096,-2158.70667871,0.00017897,2]
[403895719,1769640641189,-1145.42166228,0.00017897,2]
[403895720,1769640641198,-2158.70667871,0.00017897,2]
[403895721,1769640641207,-1145.42166228,0.00017897,2]
[403895722,1769640641216,-2158.70667871,0.00017897,2]
[403895723,1769640641225,-1145.42166228,0.00017897,2]
[403895724,1769640641234,-2158.70667871,0.00017897,2]
[403895725,1769640641244,-2158.70667871,0.00017897,2]
[403895726,1769640641252,-1145.42166228,0.00017897,2]
[403895727,1769640641261,-2158.70667871,0.00017897,2]
[403895728,1769640641270,-1145.42166228,0.00017897,2]
[403895729,1769640641279,-1145.42166228,0.00017897,2]
[403895730,1769640641289,-2158.70667871,0.00017897,2]
[403895731,1769640641299,-1145.42166228,0.00017897,2]
[403895732,1769640641309,-2158.70667871,0.00017897,2]
[403895733,1769640641322,-2158.70667871,0.00017897,2]
[403895734,1769640641332,-1145.42166228,0.00017897,2]
[403895735,1769640641341,-2158.70667871,0.00017897,2]
[403895736,1769640641350,-1145.42166228,0.00017897,2]
[403895737,1769640641359,-2158.70667871,0.00017897,2]
[403895738,1769640641368,-1145.42166228,0.00017897,2]
[403895739,1769640641377,-1145.42166228,0.00017897,2]
[403895740,1769640641386,-2158.70667871,0.00017897,2]
[403895741,1769640641394,-1145.42166228,0.00017897,2]
[403895742,1769640641403,-1145.42166228,0.00017897,2]
[403895743,1769640641414,-2158.70667871,0.00017897,2]
[403895744,1769640641424,-1145.42166228,0.00017897,2]
[403895745,1769640641436,-1145.42166228,0.00017897,2]
[403895746,1769640641445,-1145.42166228,0.00017897,2]
[403895747,1769640641453,-1145.42166228,0.00017897,2]
[403895748,1769640641462,-1145.42166228,0.00017897,2]
[403895749,1769640641471,-1145.42166228,0.00017897,2]
[403895750,1769640641480,-1145.42166228,0.00017897,2]
[403895751,1769640641490,-1145.42166228,0.00017897,2]
[403895752,1769640641500,-1145.42166228,0.00017897,2]
[403895753,1769640641512,-1145.42166228,0.00017897,2]
[403895754,1769640641522,-1145.42166228,0.00017897,2]
[403895755,1769640641533,-1145.42166228,0.00017897,2]
[403895756,1769640641542,-1145.42166228,0.00017897,2]
[403895757,1769640641551,-1145.42166228,0.00017897,2]
[403895758,1769640641563,-1145.42166228,0.00017897,2]
[403895759,1769640641573,-2158.7066786,0.00017897,2]
[403895760,1769640641582,-1145.42166224,0.00017897,2]
[403895761,1769640641591,-1145.42166224,0.00017897,2]
[403895762,1769640641602,-1145.42166224,0.00017897,2]
[403895763,1769640641611,-243.86,0.00017897,2]
[403895764,1769640641621,-500.0,0.00017899,2]
[403895765,1769640641630,-200.47665993,0.00017899,2]
[403895766,1769640641643,-196.77282159,0.00017899,2]
[403895767,1769640641652,-159.63247854,0.00017899,2]
[403895768,1769640641661,-189.9447764,0.00017899,2]
[403895769,1769640641669,-166.1324575,0.00017899,2]
[403895770,1769640641678,-500.0,0.00017899,2]
[403895771,1769640641687,-620.4286257,0.00017899,2]
[403895772,1769640641696,-500.0,0.00017899,2]
[403895773,1769640641705,-402.61062534,0.00017899,2]
[403895774,1769640641714,-1000.0,0.000179,2]
[403895775,1769640641725,-33266.4327,0.000179,2]
[403895776,1769640641734,-500.0,0.00017999,2]
[403895777,1769640641743,-500.0,0.00017999,2]
[403895778,1769640641752,-500.0,0.00017999,2]
[403895779,1769640641761,-500.0,0.00017999,2]
[403895780,1769640641770,-505.0,0.00018,2]
[403895781,1769640641780,-166.66,0.0001813,2]
[403895782,1769640641790,-155.0,0.00018152,2]
[403895783,1769640641799,-243.86,0.00018171,2]
[403895784,1769640641809,-150.00350969,0.00018368,3]
[403895785,1769640641818,-155.0,0.00018407,2]
[403895786,1769640641826,-243.86,0.00018445,2]
[403895787,1769640641836,-166.66,0.00018482,2]
[403895788,1769640641846,-155.0,0.00018663,2]
[403895789,1769640641855,-420.0,0.00018682,2]
[403895790,1769640641865,-2067.92345396,0.000189,2]
[403895791,1769640641880,-433.40402834,0.000189,2]
[403895792,1769640641889,-2501.32748229,0.000189,2]
[403895793,1769640641898,-2501.32748229,0.000189,2]
[403895794,1769640641907,-155.0,0.00018919,2]
[403895795,1769640641916,-155.0,0.00019174,2]
[403895796,1769640641925,-545.04732687,0.00019178,2]
[403895797,1769640641934,-18143.64,0.00019339,2]
[403895798,1769640641943,-155.0,0.0001943,2]
[403895799,1769640641952,-155.0,0.00019686,2]
[403895800,1769640641962,-2109.26928212,0.00020005,2]
[403895801,1769640641971,-253.05969864,0.00020005,2]
[403895802,1769640641980,-500.0,0.00020446,2]
[403895803,1769640641989,-948.12341109,0.00020651,2]
[403895804,1769640641999,-158.9976296,0.0002139,2]
[403895805,1769640642008,-155.0,0.00021475,2]
[403895806,1769640642018,-253.77857241,0.00021973,2]
[403895807,1769640642027,-508.58,0.00022,7]
[403895808,1769640642036,-150.00350969,0.00022293,16]
[403895809,1769640642046,-2109.26928212,0.00022903,2]
[403895810,1769640642055,-253.05969864,0.00022903,2]
[403895811,1769640642064,-150.00350969,0.00023601,20]
[403895812,1769640642073,-1000.0,0.00024658,2]
[403895813,1769640642082,-150.00350969,0.0002491,24]
[403895814,1769640642091,-155.0,0.00025054,2]
[403895815,1769640642100,-1152.40076316,0.0002528,2]
[403895816,1769640642110,-4698.1,0.00025422,2]
[403895817,1769640642119,-2109.26928212,0.000258,2]
[403895818,1769640642131,-253.05969864,0.000258,2]
[403895819,1769640642140,-150.00350969,0.00026218,29]
[403895820,1769640642150,-150.00350969,0.00027526,32]
[403895821,1769640642159,-2109.26928212,0.00028698,2]
[403895822,1769640642170,-253.05969864,0.00028698,2]
[403895823,1769640642180,-150.00350969,0.00028834,36]
[403895824,1769640642197,-1364.94,0.00028876,120]
[403895825,1769640642217,-150.00350969,0.00030143,40]
[403895826,1769640642226,-324.51,0.00030947,2]
[403895827,1769640642235,-406.72262852,0.00030991,28]
[403895828,1769640642244,-717.50692708,0.00030991,28]
[403895829,1769640642254,-1073.34745164,0.00030991,28]
[403895830,1769640642263,-1452.2706,0.00030991,28]
[403895831,1769640642272,-168.0,0.00031241,2]
[403895832,1769640642281,-150.00350969,0.00031451,43]
[403895833,1769640642291,-2109.26928212,0.00031596,2]
[403895834,1769640642300,-253.05969864,0.00031596,2]
[403895835,1769640642310,-150.0,0.000318,14]
[403895836,1769640642319,-158.9976296,0.00032084,2]
[403895837,1769640642329,-155.0,0.00032213,2]
[403895838,1769640642338,-10345.78,0.00032368,120]
[403895839,1769640642347,-168.0,0.00032591,2]
[403895840,1769640642356,-150.00350969,0.00032759,47]
[403895841,1769640642365,-150.0,0.00032762,30]
[403895842,1769640642375,-266.05277609,0.00032762,30]
[403895843,1769640642384,-150.0,0.00032762,30]
[403895844,1769640642393,-150.0,0.00032762,30]
[403895845,1769640642402,-150.0,0.00032762,30]
[403895846,1769640642411,-508.58,0.000328,7]
[403895847,1769640642420,-150.0,0.00032817,30]
[403895848,1769640642429,-150.0,0.00032817,30]
[403895849,1769640642438,-150.0,0.00032817,30]
[403895850,1769640642447,-200.0,0.00032872,30]
[403895851,1769640642457,-200.0,0.00032872,30]
[403895852,1769640642467,-200.0,0.00032872,30]
[403895853,1769640642476,-202.06,0.000329,14]
[403895854,1769640642485,-558.13,0.000329,14]
[403895855,1769640642495,-150.0,0.000334,30]
[403895856,1769640642504,-167.7,0.00033468,2]
[403895857,1769640642513,-150.00350969,0.00034068,50]
[403895858,1769640642522,-2109.26928212,0.00034494,2]
[403895859,1769640642532,-253.05969864,0.00034494,2]
[403895860,1769640642541,-6572.0,0.00034723,2]
[403895861,1769640642550,-224.32,0.000351,2]
[403895862,1769640642561,-150.00350979,0.00035376,54]
[403895863,1769640642573,-1635.464,0.00035712,43]
[403895864,1769640642582,-173.4210271,0.00035712,43]
[403895865,1769640642591,-177.47940278,0.00036684,58]
[403895866,1769640642600,-2109.26928212,0.00037391,2]
[403895867,1769640642611,-253.05969864,0.00037391,2]
[403895868,1769640642620,-152.0,0.00037394,3]
[403895869,1769640642630,-6570.0,0.00037723,2]
[403895870,1769640642641,-177.47940278,0.00037992,61]
[403895871,1769640642650,-191.18,0.00038259,120]
[403895872,1769640642659,-500.0,0.00038999,30]
[403895873,1769640642669,-177.47940278,0.00039301,65]
[403895874,1769640642679,-500.0,0.00039306,120]
[403895875,1769640642688,-500.0,0.00039306,120]
[403895876,1769640642698,-500.0,0.00039306,10]
[403895877,1769640642707,-4037.58,0.00039306,2]
[403895878,1769640642716,-200.0,0.00039713,2]
[403895879,1769640642725,-284.10002293,0.00040039,60]
[403895880,1769640642734,-2109.26928212,0.00040289,15]
[403895881,1769640642743,-253.05969864,0.00040289,15]
[403895882,1769640642752,-1500.0,0.000403,2]
[403895883,1769640642761,-177.47940278,0.00040609,69]
[403895884,1769640642770,-500.0,0.00041,120]
[403895885,1769640642779,-163.42,0.00041,120]
[403895886,1769640642788,-500.0,0.00041905,60]
[403895887,1769640642798,-177.47940278,0.00041917,72]
[403895888,1769640642807,-992.37237501,0.00041988,7]
[403895889,1769640642816,-202.06,0.00042,14]
[403895890,1769640642825,-1010.0,0.00042224,30]
[403895891,1769640642835,-11782.54,0.00042289,2]
[403895892,1769640642844,-558.13,0.000423,14]
[403895893,1769640642853,-456.35826333,0.00042395,30]
[403895894,1769640642863,-508.58,0.000424,14]
[403895895,1769640642872,-500.0,0.00042438,120]
[403895896,1769640642881,-500.0,0.00042575,120]
[403895897,1769640642891,-1348.32,0.00042628,2]
[403895898,1769640642901,-1809.91,0.00042628,2]
[403895899,1769640642910,-1010.0,0.00042659,30]
[403895900,1769640642920,-500.0,0.00042712,120]
[403895901,1769640642930,-958.38,0.000428,120]
[403895902,1769640642940,-500.0,0.00042849,120]
[403895903,1769640642951,-500.0,0.00042986,120]
[403895904,1769640642960,-150.0,0.00043,120]
[403895905,1769640642970,-500.0,0.00043001,60]
[403895906,1769640642979,-1010.0,0.00043094,30]
[403895907,1769640642988,-500.0,0.00043123,120]
[403895908,1769640642998,-150.0,0.00043145,14]
[403895909,1769640643007,-130883.3808,0.00043185,120]
[403895910,1769640643016,-500.0,0.00043186,120]
[403895911,1769640643026,-500.0,0.00043187,120]
[403895912,1769640643035,-500.0,0.00043187,120]
[403895913,1769640643045,-500.0,0.00043187,120]
[403895914,1769640643053,-500.0,0.00043187,120]
[403895915,1769640643063,-500.0,0.00043187,120]
[403895916,1769640643072,-500.0,0.00043187,120]
[403895917,1769640643082,-500.0,0.00043187,120]
[403895918,1769640643092,-500.0,0.00043187,120]
[403895919,1769640643101,-500.0,0.00043187,120]
[403895921,1769640643110,-500.0,0.00043187,120]
[403895923,1769640643120,-500.0,0.00043187,120]
[403895925,1769640643129,-500.0,0.00043187,120]
[403895926,1769640643139,-500.0,0.00043187,120]
[403895927,1769640643148,-500.0,0.00043187,120]
[403895928,1769640643159,-500.0,0.00043187,120]
[403895929,1769640643168,-153.72473404,0.00043187,17]
[403895930,1769640643177,-779.0,0.00043187,120]
[403895931,1769640643186,-173.92947723,0.00043187,10]
[403895932,1769640643195,-217.53093906,0.00043187,2]
[403895933,1769640643204,-2109.26928212,0.00043187,15]
[403895934,1769640643214,-253.05969864,0.00043187,15]
[403895935,1769640643222,-253.0,0.000432,42]
[403895936,1769640643231,-200.0,0.00043203,120]
[403895937,1769640643240,-177.47940278,0.00043226,97]
[403895938,1769640643250,-500.0,0.0004326,120]
[403895939,1769640643260,-150.0,0.0004326,30]
[403895940,1769640643270,-173.83776054,0.0004326,30]
[403895942,1769640643279,-150.0,0.0004326,30]
[403895944,1769640643288,-199.95640573,0.0004326,30]
[403895945,1769640643297,-295.96574593,0.0004326,30]
[403895946,1769640643309,-150.0,0.0004326,30]
[403895947,1769640643319,-150.0,0.0004326,30]
[403895948,1769640643328,-150.0,0.0004326,30]
[403895950,1769640643338,-150.0,0.0004326,30]
[403895951,1769640643347,-150.0,0.0004326,30]
[403895952,1769640643360,-150.0,0.0004326,30]
[403895953,1769640643369,-150.0,0.0004326,30]
[403895954,1769640643378,-150.0,0.0004326,30]
[403895955,1769640643387,-150.0,0.0004326,30]
[403895956,1769640643396,-150.0,0.0004326,30]
[403895957,1769640643405,-150.0,0.0004326,30]
[403895958,1769640643414,-173.83776054,0.00043263,30]
[403895959,1769640643423,-295.96574593,0.00043263,30]
[403895960,1769640643431,-150.0,0.00043264,30]
[403895961,1769640643440,-150.0,0.00043264,30]
[403895962,1769640643450,-150.0,0.00043264,30]
[403895963,1769640643460,-150.0,0.00043264,30]
[403895964,1769640643469,-150.0,0.00043264,30]
[403895965,1769640643478,-173.83776054,0.00043266,30]
[403895966,1769640643487,-295.96574593,0.00043266,30]
[403895967,1769640643496,-10818.0,0.00043267,7]
[403895968,1769640643504,-150.0,0.00043267,30]
[403895969,1769640643514,-150.0,0.00043267,30]
[403895970,1769640643522,-150.0,0.00043267,30]
[403895971,1769640643531,-150.0,0.00043267,30]
[403895972,1769640643540,-150.0,0.00043268,30]
[403895973,1769640643549,-150.0,0.00043268,30]
[403895974,1769640643558,-173.83776054,0.00043269,30]
[403895975,1769640643572,-295.96574593,0.00043269,30]
[403895976,1769640643581,-150.0,0.00043271,30]
[403895977,1769640643590,-150.0,0.00043271,30]
[403895978,1769640643599,-150.0,0.00043271,30]
[403895979,1769640643609,-150.0,0.00043271,30]
[403895980,1769640643618,-150.0,0.00043272,30]
[403895981,1769640643627,-173.83776054,0.00043272,30]
[403895982,1769640643635,-295.96574593,0.00043272,30]
[403895983,1769640643644,-150.0,0.00043273,30]
[403895984,1769640643653,-150.0,0.00043275,30]
[403895985,1769640643662,-150.0,0.00043275,30]
[403895986,1769640643671,-150.0,0.00043275,30]
[403895987,1769640643680,-150.0,0.00043275,30]
[403895988,1769640643689,-173.83776054,0.00043275,30]
[403895989,1769640643698,-295.96574593,0.00043275,30]
[403895990,1769640643707,-150.0,0.00043275,30]
[403895991,1769640643716,-1500.0,0.00043275,120]
[403895992,1769640643725,-1500.0,0.00043275,120]
[403895993,1769640643734,-1500.0,0.00043275,120]
[403895994,1769640643744,-1500.0,0.00043275,120]
[403895995,1769640643753,-228.668,0.00043275,120]
[403895996,1769640643762,-150.0,0.00043276,30]
[403895997,1769640643771,-150.0,0.00043276,30]
[403895998,1769640643780,-393.60669612,0.00043277,7]
[403895999,1769640643789,-173.83776054,0.00043278,30]
[403896000,1769640643798,-295.96574593,0.00043278,30]
[403896001,1769640643807,-150.0,0.00043278,30]
[403896002,1769640643815,-150.0,0.00043278,30]
[403896003,1769640643824,-150.0,0.00043278,30]
[403896004,1769640643833,-150.0,0.00043279,30]
[403896005,1769640643842,-150.0,0.0004328,30]
[403896006,1769640643851,-150.0,0.0004328,30]
[403896007,1769640643860,-173.83776054,0.00043281,30]
[403896008,1769640643869,-295.96574593,0.00043281,30]
[403896009,1769640643878,-150.0,0.00043281,30]
[403896010,1769640643887,-150.0,0.00043282,30]
[403896011,1769640643895,-150.0,0.00043282,30]
[403896012,1769640643905,-150.0,0.00043282,30]
[403896013,1769640643915,-150.0,0.00043282,30]
[403896014,1769640643924,-150.0,0.00043283,30]
[403896015,1769640643933,-173.83776054,0.00043284,30]
[403896016,1769640643942,-295.96574593,0.00043284,30]
[403896017,1769640643951,-500.0,0.00043284,120]
[403896018,1769640643960,-488.41438456,0.00043284,120]
[403896019,1769640643970,-500.0,0.00043284,10]
[403896020,1769640643979,-200.0,0.00043285,120]
[403896021,1769640643987,-500.0,0.00043285,120]
[403896022,1769640643997,-151.0,0.00043285,120]
[403896023,1769640644006,-500.0,0.00043285,120]
[403896024,1769640644019,-200.0,0.00043285,120]
[403896025,1769640644028,-200.0,0.00043285,120]
[403896026,1769640644037,-200.0,0.00043285,120]
[403896027,1769640644046,-200.0,0.00043285,120]
[403896028,1769640644055,-388.77024038,0.00043285,120]
[403896029,1769640644066,-500.0,0.00043285,120]
[403896030,1769640644076,-1133.41463179,0.00043285,120]
[403896031,1769640644085,-151.0,0.00043285,120]
[403896032,1769640644095,-616.0,0.00043285,120]
[403896033,1769640644104,-151.0,0.00043285,120]
[403896034,1769640644112,-3000.0,0.00043285,120]
[403896035,1769640644121,-151.0,0.00043285,120]
[403896036,1769640644130,-156.587,0.00043285,120]
[403896037,1769640644140,-156.587,0.00043285,120]
[403896038,1769640644148,-638.792,0.00043285,120]
[403896039,1769640644157,-3000.0,0.00043285,120]
[403896040,1769640644168,-1561.29702053,0.00043285,120]
[403896041,1769640644177,-151.0,0.00043285,120]
[403896042,1769640644186,-162.380719,0.00043285,120]
[403896043,1769640644195,-3000.0,0.00043285,120]
[403896044,1769640644204,-662.427304,0.00043285,120]
[403896045,1769640644213,-151.0,0.00043285,120]
[403896046,1769640644222,-162.380719,0.00043285,120]
[403896047,1769640644231,-151.0,0.00043285,120]
[403896048,1769640644240,-168.3888056,0.00043285,120]
[403896049,1769640644249,-3000.0,0.00043285,120]
[403896050,1769640644259,-686.93711425,0.00043285,120]
[403896051,1769640644269,-156.587,0.00043285,120]
[403896052,1769640644278,-168.3888056,0.00043285,120]
[403896053,1769640644286,-151.0,0.00043285,120]
[403896054,1769640644295,-250.0,0.00043285,120]
[403896055,1769640644304,-500.0,0.00043285,120]
[403896056,1769640644313,-221.75173327,0.00043285,120]
[403896057,1769640644323,-3000.0,0.00043285,120]
[403896058,1769640644332,-712.35378748,0.00043285,120]
[403896059,1769640644341,-162.380719,0.00043285,120]
[403896060,1769640644351,-174.61919141,0.00043285,120]
[403896061,1769640644363,-250.0,0.00043285,120]
[403896062,1769640644372,-151.0,0.00043285,120]
[403896063,1769640644381,-518.5,0.00043285,120]
[403896064,1769640644390,-3000.0,0.00043285,120]
[403896065,1769640644399,-738.71087761,0.00043285,120]
[403896066,1769640644408,-181.08010149,0.00043285,120]
[403896067,1769640644417,-500.0,0.00043285,120]
[403896068,1769640644426,-250.0,0.00043285,120]
[403896069,1769640644435,-151.0,0.00043285,120]
[403896070,1769640644444,-500.0,0.00043285,120]
[403896071,1769640644453,-537.6845,0.00043285,120]
[403896072,1769640644461,-168.3888056,0.00043285,120]
[403896073,1769640644470,-500.0,0.00043285,120]
[403896074,1769640644480,-766.04318008,0.00043285,120]
[403896075,1769640644489,-187.78006525,0.00043285,120]
[403896076,1769640644499,-500.0,0.00043285,120]
[403896077,1769640644508,-3000.0,0.00043285,120]
[403896078,1769640644517,-250.0,0.00043285,120]
[403896079,1769640644526,-151.0,0.00043285,120]
[403896080,1769640644534,-500.0,0.00043285,120]
[403896081,1769640644543,-557.5788265,0.00043285,120]
[403896082,1769640644551,-500.0,0.00043285,120]
[403896083,1769640644562,-174.61919141,0.00043285,120]
[403896084,1769640644578,-794.38677775,0.00043285,120]
[403896085,1769640644588,-194.72792766,0.00043285,120]
[403896086,1769640644597,-500.0,0.00043285,120]
[403896087,1769640644607,-3000.0,0.00043285,120]
[403896088,1769640644617,-151.0,0.00043285,120]
[403896089,1769640644626,-250.0,0.00043285,120]
[403896090,1769640644636,-500.0,0.00043285,120]
[403896091,1769640644645,-500.0,0.00043285,120]
[403896092,1769640644654,-280.98499886,0.00043285,120]
[403896093,1769640644663,-823.77908852,0.00043285,120]
[403896094,1769640644672,-201.93286099,0.00043285,120]
[403896095,1769640644682,-500.0,0.00043285,120]
[403896096,1769640644691,-151.0,0.00043285,120]
[403896097,1769640644700,-3000.0,0.00043285,120]